bitfinex-derivatives/quotes_ETHF0:USTF0_20250824
["timestamp","ask_amount","ask_price","bid_price","bid_amount"]
[1756069000193,2.0705,4792.8,4792.2,0.41737]
[1756069000392,1.0861,4792.8,4792.6,0.962]
[1756069000591,1.0861,4792.8,4792.7,1.464]
[1756069000990,2.0705,4792.8,4792.7,1.464]
[1756069001185,1.4779,4792.8,4792.4,0.41735]
[1756069001391,1.4779,4792.3,4792.1,2.426]
[1756069001693,1.0861,4792.2,4792.1,2.426]
[1756069001991,2.0705,4792.2,4792.1,2.426]
[1756069002391,1.0861,4792.2,4792.1,2.426]
[1756069002789,2.0705,4792.1,4792.0,1.88139]
[1756069002989,1.0861,4792.0,4791.6,3.2078]
[1756069003191,3.2078,4792.6,4791.6,3.2078]
[1756069003391,3.5484,4791.7,4791.3,0.41745]
[1756069003583,3.5484,4791.7,4791.4,1.464]
[1756069003584,1.0861,4791.5,4791.4,1.464]
[1756069004196,5.2783,4792.1,4791.4,3.5328]
[1756069004499,1.0861,4791.9,4791.8,2.426]
[1756069004689,3.2078,4792.1,4791.9,3.5328]
[1756069004888,1.4779,4793.0,4792.4,3.5328]
[1756069005089,1.4779,4793.0,4792.6,0.41734]
[1756069005291,3.5484,4793.0,4792.9,2.426]
[1756069005496,1.0861,4793.0,4792.9,2.426]
[1756069006890,2.0705,4793.0,4792.9,2.426]
[1756069007786,1.0861,4792.9,4792.8,0.41732]
[1756069007986,1.0861,4793.0,4792.3,1.464]
[1756069008187,1.4779,4792.8,4792.0,3.2078]
[1756069008390,0.9844,4792.6,4792.0,3.62519]
[1756069008596,3.2078,4793.1,4791.9,21.58]
[1756069008597,3.2078,4793.1,4791.9,21.9974]
[1756069008897,3.2078,4792.5,4791.7,0.41742]
[1756069009095,1.0861,4792.3,4791.9,0.4174]
[1756069009286,3.2078,4792.5,4791.9,1.8814]
[1756069009487,1.0861,4792.0,4791.9,1.8814]
[1756069009893,1.0861,4792.0,4791.9,2.8434]
[1756069010094,2.0705,4792.0,4791.9,2.8434]
[1756069010292,3.5484,4792.0,4791.9,1.8814]
[1756069010490,3.5484,4791.9,4791.7,0.41742]
[1756069010690,3.2078,4792.5,4791.7,0.41742]
[1756069010691,3.5484,4791.8,4791.7,0.41742]
[1756069010995,2.564,4791.8,4791.7,1.37942]
[1756069011297,2.564,4791.8,4791.7,2.84342]
[1756069011298,1.0861,4791.8,4791.7,2.84342]
[1756069013998,0.9844,4792.1,4791.8,0.41741]
[1756069014298,1.0861,4792.1,4792.0,2.426]
[1756069014502,1.0861,4792.1,4792.0,3.5328]
[1756069014808,2.0705,4792.1,4792.0,2.426]
[1756069015001,2.564,4791.9,4791.8,2.84341]
[1756069015197,3.2078,4792.5,4791.9,0.4174]
[1756069015198,0.9844,4792.3,4791.9,0.4174]
[1756069015403,2.0705,4792.2,4792.1,1.464]
[1756069015704,3.5484,4792.2,4792.1,1.464]
[1756069016403,3.5484,4792.2,4792.1,2.426]
[1756069016704,1.0861,4792.2,4792.1,3.5328]
[1756069017399,1.0861,4792.4,4792.3,0.41737]
[1756069017702,1.0861,4792.4,4792.3,1.37937]
[1756069017900,1.0861,4792.4,4792.3,2.53777]
[1756069018102,1.0861,4792.4,4792.3,3.94117]
[1756069018705,3.2078,4792.5,4792.4,3.5284]
[1756069020199,4.3543,4793.7,4792.5,3.5284]
[1756069020403,1.1465,4794.1,4794.0,3.94562]
[1756069020699,5.3089,4794.4,4793.7,1.4034]
[1756069021008,3.2078,4794.4,4793.9,21.5074]
[1756069021206,3.2078,4794.4,4793.9,20.104]
[1756069021410,1.1465,4795.5,4795.2,0.41711]
[1756069021596,1.1465,4795.5,4794.0,7.2078]
[1756069021597,1.1465,4795.5,4795.4,2.37]
[1756069021804,0.9546,4795.1,4794.2,0.9666]
[1756069022107,3.2078,4795.6,4794.7,2.37]
[1756069022306,3.2078,4795.1,4794.3,21.67859]
[1756069022506,2.1011,4794.6,4794.5,1.4034]
[1756069022706,2.1011,4794.6,4794.5,2.37]
[1756069022903,3.2078,4795.1,4794.3,21.2614]
[1756069022904,0.9546,4794.5,4794.3,20.103]
[1756069023104,3.5897,4794.4,4793.6,0.192545]
[1756069023299,3.5897,4794.3,4793.6,0.192545]
[1756069023506,3.5897,4794.3,4793.7,2.78724]
[1756069023710,3.5897,4794.3,4793.7,2.37]
[1756069024006,3.5897,4793.9,4793.6,0.192545]
[1756069024208,3.5897,4793.7,4793.6,0.192545]
[1756069024408,2.4432,4793.7,4793.4,0.9666]
[1756069024710,0.9546,4793.6,4793.5,1.4034]
[1756069025013,2.1011,4793.6,4793.5,1.4034]
[1756069025211,3.2078,4794.0,4792.5,0.41735]
[1756069025401,3.2078,4794.0,4792.6,21.5004]
[1756069025606,3.2078,4794.0,4792.6,20.097]
[1756069025808,1.4886,4793.2,4793.0,2.37]
[1756069026108,3.5897,4793.1,4793.0,1.4034]
[1756069026511,2.6351,4793.1,4793.0,2.37]
[1756069026708,1.1465,4793.1,4793.0,2.37]
[1756069027005,3.2078,4794.0,4793.6,0.41725]
[1756069027201,3.2078,4794.0,4793.8,1.1584]
[1756069027406,3.2078,4794.0,4793.7,20.094]
[1756069027711,3.5897,4793.8,4793.7,20.094]
[1756069029110,1.1465,4793.8,4793.7,23.6224]
[1756069029608,3.2078,4794.0,4793.7,23.6224]
[1756069029810,3.2078,4794.0,4793.7,20.094]
[1756069030008,3.2078,4794.0,4793.9,3.5284]
[1756069030509,6.7975,4794.0,4793.9,2.37]
[1756069030712,5.3089,4794.0,4793.9,2.37]
[1756069031509,5.3089,4794.0,4793.7,20.094]
[1756069031713,3.5897,4793.8,4793.4,20.089]
[1756069032011,3.2078,4794.0,4793.4,20.089]
[1756069032211,3.5897,4793.5,4793.4,20.089]
[1756069032513,2.1011,4793.5,4793.4,20.089]
[1756069032712,2.1011,4793.5,4793.4,22.459]
[1756069032912,1.1465,4793.5,4793.4,22.459]
[1756069033604,0.9546,4793.9,4793.4,22.214]
[1756069033810,1.1465,4793.8,4793.6,2.37]
[1756069034011,2.4432,4793.9,4793.7,2.37]
[1756069034214,1.4886,4793.9,4793.7,2.37]
[1756069034415,0.9546,4793.8,4793.7,2.37]
[1756069034608,2.1011,4793.8,4793.7,2.37]
[1756069036413,3.5897,4793.8,4793.7,2.37]
[1756069038506,3.2078,4794.6,4793.4,20.089]
[1756069038707,1.4886,4793.7,4793.5,0.9666]
[1756069038912,2.1011,4793.6,4793.5,0.9666]
[1756069039415,3.5897,4793.6,4793.5,2.37]
[1756069040812,3.5897,4793.6,4793.5,4.7976]
[1756069041012,2.1011,4793.6,4793.5,4.7976]
[1756069041211,2.1011,4793.6,4793.5,5.956]
[1756069042518,5.9383,4793.6,4793.5,5.956]
[1756069042718,4.9837,4793.6,4793.5,5.956]
[1756069042919,3.4951,4793.6,4793.5,5.956]
[1756069043122,4.4497,4793.6,4793.5,5.956]
[1756069043821,2.546,4793.6,4793.5,5.956]
[1756069045019,4.4497,4793.6,4793.5,5.956]
[1756069045518,2.546,4793.6,4793.5,5.956]
[1756069045922,4.4497,4793.6,4793.5,5.956]
[1756069046422,5.9383,4793.6,4793.5,4.7976]
[1756069047221,5.9383,4793.6,4793.5,5.956]
[1756069047417,1.1465,4793.5,4792.7,2.37]
[1756069047723,5.9383,4792.8,4792.7,3.831]
[1756069047916,5.9383,4792.8,4792.7,24.9491]
[1756069048218,1.8526,4792.8,4792.7,24.9491]
[1756069048411,3.5403,4793.2,4793.1,4.936]
[1756069048611,6.0374,4793.2,4793.1,25.003]
[1756069051523,6.0374,4793.2,4793.1,23.9519]
[1756069052124,6.0374,4793.2,4793.1,22.5104]
[1756069052515,6.0374,4793.2,4793.1,25.003]
[1756069053019,4.3826,4793.5,4793.4,2.4434]
[1756069053220,9.2452,4793.5,4793.4,24.997]
[1756069053421,3.5403,4793.3,4793.2,20.061]
[1756069053625,3.6719,4792.4,4791.6,1.4415]
[1756069053918,6.0374,4791.7,4791.6,4.936]
[1756069054124,2.195,4792.1,4791.6,26.1629]
[1756069054315,0.6954,4791.7,4791.6,26.1629]
[1756069055220,1.8702,4791.7,4791.6,26.1629]
[1756069056522,1.1748,4791.9,4791.7,3.6605]
[1756069056728,2.623,4791.9,4791.8,2.4434]
[1756069056921,2.623,4791.9,4791.8,6.1039]
[1756069057429,3.2078,4792.6,4791.8,6.1039]
[1756069057622,1.4482,4792.1,4792.0,3.4945]
[1756069057822,2.623,4792.1,4792.0,4.936]
[1756069058423,3.6432,4792.1,4792.0,4.936]
[1756069058616,3.6432,4792.1,4792.0,6.1039]
[1756069059017,6.0374,4792.1,4792.0,6.1039]
[1756069059219,6.0374,4792.1,4792.0,4.936]
[1756069059427,6.0374,4792.1,4792.0,1.0083]
[1756069060527,6.0374,4792.1,4792.0,4.2797]
[1756069060826,6.0374,4792.1,4792.0,4.936]
[1756069061025,3.5403,4792.1,4792.0,6.1039]
[1756069061226,6.0374,4792.1,4792.0,6.1039]
[1756069061522,6.0374,4792.1,4792.0,3.2286]
[1756069061727,6.0374,4792.1,4792.0,1.0083]
[1756069061927,3.147,4792.0,4791.9,2.4434]
[1756069062129,4.8626,4792.0,4791.9,24.989]
[1756069062623,6.0374,4792.0,4791.9,24.989]
[1756069062825,3.6719,4792.5,4792.3,0.41737]
[1756069063022,3.6432,4792.4,4792.3,23.9777]
[1756069063227,2.8449,4792.4,4792.3,26.1539]
[1756069063534,1.9276,4792.4,4792.3,26.1539]
[1756069063732,4.5605,4792.4,4792.3,26.1539]
[1756069063930,6.0374,4792.4,4792.3,24.986]
[1756069064533,4.0,4792.4,4791.1,1.4415]
[1756069064723,2.3655,4790.7,4790.6,3.2286]
[1756069065031,6.0374,4790.7,4790.6,24.984]
[1756069065431,4.5605,4790.7,4790.6,26.1519]
[1756069065625,3.2078,4791.1,4789.6,2.4926]
[1756069065829,3.6719,4789.7,4789.2,3.2078]
[1756069066126,3.2078,4789.8,4788.7,1.0511]
[1756069066329,3.2078,4789.3,4788.6,1.4415]
[1756069066527,3.6719,4788.6,4788.5,20.046]
[1756069066827,2.195,4788.6,4788.5,22.5386]
[1756069067031,3.2078,4789.4,4788.6,2.6094]
[1756069067234,2.195,4790.2,4789.6,3.6605]
[1756069067534,3.6719,4790.0,4789.9,2.4926]
[1756069068033,2.195,4790.0,4789.9,2.4926]
[1756069068231,1.1748,4789.9,4789.8,1.4415]
[1756069068431,1.1748,4789.9,4789.8,3.6605]
[1756069069028,3.2078,4790.3,4790.1,1.58546]
[1756069069236,1.1748,4790.3,4790.2,23.7045]
[1756069069529,2.195,4790.3,4790.2,22.5366]
[1756069069830,3.6719,4790.3,4790.2,22.5366]
[1756069070735,2.6517,4790.7,4790.3,3.6605]
[1756069070925,1.1748,4790.6,4790.4,3.6605]
[1756069071127,1.1748,4790.6,4790.5,2.4926]
[1756069071738,3.6719,4790.5,4790.2,20.044]
[1756069071926,1.4769,4790.6,4790.2,21.0951]
[1756069072131,30.055,4791.7,4790.6,3.6605]
[1756069072132,3.2078,4791.5,4790.6,3.6605]
[1756069072334,3.2078,4791.5,4791.3,0.41745]
[1756069072534,3.2078,4791.5,4791.4,23.7025]
[1756069074237,1.0202,4792.1,4791.4,23.7025]
[1756069074238,1.1748,4792.2,4791.9,0.4174]
[1756069074438,3.2078,4792.3,4792.2,3.6605]
[1756069074639,3.2078,4792.3,4792.2,23.7015]
[1756069074932,6.8797,4792.3,4792.2,21.4825]
[1756069075138,6.8797,4792.3,4792.2,20.041]
[1756069075333,5.4028,4792.3,4792.2,22.5336]
[1756069075534,5.4028,4792.3,4792.2,23.7015]
[1756069075535,3.2078,4792.3,4792.2,23.7015]
[1756069075739,3.2078,4792.8,4792.7,3.02893]
[1756069075941,3.2078,4792.8,4792.7,23.06793]
[1756069076641,5.4028,4792.8,4792.7,21.4827]
[1756069077338,5.4028,4792.8,4792.7,22.6506]
[1756069077740,2.1153,4792.7,4791.7,4.577]
[1756069077937,1.4461,4792.5,4791.9,2.4335]
[1756069078741,1.4461,4792.5,4791.9,2.8509]
[1756069080244,3.2078,4792.8,4792.0,0.41739]
[1756069080245,3.5614,4792.7,4792.0,0.41739]
[1756069080544,2.547,4792.4,4792.1,1.3692]
[1756069080739,1.1009,4792.3,4792.1,1.3692]
[1756069080945,3.5614,4792.0,4791.9,1.7866]
[1756069081139,3.5614,4792.0,4791.9,1.3692]
[1756069084450,3.5614,4791.9,4791.8,20.036]
[1756069085154,3.5614,4791.9,4791.8,21.4052]
[1756069085454,3.5614,4791.9,4791.8,20.036]
[1756069085848,5.8875,4791.9,4791.8,20.036]
[1756069086048,1.0144,4791.6,4790.9,1.0643]
[1756069086252,5.8875,4791.2,4791.1,23.0782]
[1756069086748,5.8875,4791.2,4790.5,1.3692]
[1756069087049,4.4414,4790.6,4790.5,23.0752]
[1756069087354,5.8875,4790.6,4790.5,23.0752]
[1756069087752,5.8875,4790.6,4790.5,0.9402]
[1756069088051,5.8875,4790.6,4790.5,20.9622]
[1756069089047,5.8875,4790.6,4790.5,20.022]
[1756069089252,4.8731,4789.9,4789.8,2.3094]
[1756069089455,5.8875,4789.9,4789.8,23.0722]
[1756069091151,0.6522,4788.8,4788.7,4.1165]
[1756069091348,1.7531,4788.8,4788.7,24.1375]
[1756069092048,3.5614,4789.5,4788.6,23.2268]
[1756069092250,3.5614,4789.6,4788.6,3.2078]
[1756069092451,3.5614,4789.6,4789.0,0.41765]
[1756069092645,2.1153,4789.3,4789.2,1.3692]
[1756069092848,3.5614,4789.3,4789.2,1.3692]
[1756069093049,4.3087,4789.7,4789.2,2.4335]
[1756069093254,1.1009,4789.6,4789.3,2.4335]
[1756069093458,1.1009,4789.6,4789.1,20.43564]
[1756069093459,2.547,4790.7,4789.5,2.4335]
[1756069093648,2.547,4790.7,4789.4,23.2248]
[1756069093955,2.547,4790.7,4789.9,2.4335]
[1756069093956,2.1153,4790.6,4789.9,2.4335]
[1756069094156,2.4605,4790.3,4790.0,20.019]
[1756069094351,2.547,4790.2,4790.0,20.019]
[1756069094653,2.547,4790.2,4789.9,1.3692]
[1756069094654,3.5614,4790.0,4789.9,1.3692]
[1756069094853,1.1009,4790.3,4790.1,2.4335]
[1756069095052,1.1009,4790.3,4790.2,1.3692]
[1756069095249,3.5614,4790.1,4789.6,21.0823]
[1756069095449,3.5614,4789.8,4789.6,20.018]
[1756069095753,3.5614,4789.8,4789.3,3.2078]
[1756069095754,3.2078,4790.4,4789.3,3.2078]
[1756069095953,1.3577,4789.2,4789.1,4.1165]
[1756069096147,3.473,4789.2,4789.1,4.1165]
[1756069096656,3.302,4789.0,4787.8,1.55931245]
[1756069096844,1.4461,4787.7,4787.6,1.0643]
[1756069097056,2.4605,4787.7,4787.6,1.0643]
[1756069097254,2.4605,4787.7,4787.6,2.4335]
[1756069097555,1.0144,4787.7,4787.6,2.4335]
[1756069097860,2.4605,4787.7,4787.6,2.4335]
[1756069098055,3.2078,4787.9,4787.6,2.4335]
[1756069098247,3.2078,4787.9,4787.4,1.3692]
[1756069098451,4.2222,4787.9,4787.5,1.0643]
[1756069098652,1.0144,4787.8,4787.7,2.4335]
[1756069100158,3.2078,4787.9,4787.8,2.4335]
[1756069100751,3.2078,4787.9,4787.8,6.4335]
[1756069101252,2.1153,4788.9,4788.3,1.0643]
[1756069101451,3.2078,4789.2,4788.5,1.0643]
[1756069101856,3.2078,4789.2,4788.7,1.0643]
[1756069102159,3.2078,4789.2,4788.9,1.0643]
[1756069102457,1.1009,4789.0,4788.2,1.0643]
[1756069102856,1.1009,4789.0,4788.4,1.0643]
[1756069103158,3.5614,4789.1,4788.4,1.3692]
[1756069103658,3.2078,4789.2,4788.4,1.3692]
[1756069103859,3.2078,4789.2,4788.1,23.2278]
[1756069104058,3.5614,4788.8,4788.1,23.2278]
[1756069104259,3.5614,4789.0,4788.1,23.2278]
[1756069104460,3.2078,4789.2,4788.1,3.2078]
[1756069104656,3.2078,4788.5,4788.0,1.3692]
[1756069104857,3.2078,4789.0,4788.0,1.3692]
[1756069105060,3.5614,4788.9,4787.8,1.3692]
[1756069105260,3.5614,4788.8,4787.8,1.3692]
[1756069105461,3.5614,4788.6,4787.8,1.3692]
[1756069105664,3.5614,4788.5,4787.8,1.3692]
[1756069105864,2.547,4788.4,4787.8,1.3692]
[1756069106058,1.0144,4788.3,4787.8,1.3692]
[1756069106258,1.4461,4788.2,4787.7,1.48207]
[1756069106459,2.1153,4788.1,4787.8,1.3692]
[1756069106654,3.2078,4788.5,4787.9,2.4335]
[1756069106860,1.1009,4789.3,4788.8,2.4335]
[1756069107060,2.1153,4789.2,4789.0,2.4335]
[1756069107263,2.4605,4789.2,4789.1,1.3692]
[1756069107662,2.1291,4789.1,4788.5,2.4169]
[1756069107859,2.1291,4789.1,4787.3,1.04452]
[1756069107860,3.2078,4789.1,4787.9,1.3567]
[1756069108054,3.5062,4789.0,4787.9,1.3567]
[1756069108260,3.2078,4789.1,4787.9,1.3567]
[1756069108459,3.2078,4788.5,4787.9,1.3567]
[1756069108660,3.2078,4788.5,4787.9,0.0041]
[1756069108855,3.5062,4788.4,4787.9,0.0041]
[1756069109063,3.2078,4788.5,4787.9,1.3526]
[1756069109263,3.2078,4788.5,4787.5,0.0041]
[1756069109465,3.5062,4788.4,4787.5,0.0041]
[1756069109667,3.6482015,4790.8,4787.4,21.3726]
[1756069109668,3.2078,4788.0,4787.4,1.3526]
[1756069109860,3.2078,4788.0,4787.0,1.095]
[1756069110056,1.3771,4787.8,4787.0,2.4476]
[1756069110364,3.5062,4787.6,4787.0,2.4476]
[1756069110558,3.5062,4787.3,4786.6,20.02]
[1756069110759,2.1291,4787.2,4786.6,20.02]
[1756069111156,1.1301,4787.1,4786.6,20.02]
[1756069111357,2.1291,4786.9,4786.8,1.3526]
[1756069111564,1.1301,4787.2,4786.7,2.4461]
[1756069111759,30.078,4789.1,4787.0,3.2078]
[1756069111760,1.1301,4787.8,4787.0,3.2078]
[1756069111957,1.1301,4787.8,4787.2,1.51131]
[1756069112158,1.1301,4788.2,4787.4,1.0935]
[1756069112564,1.1301,4788.2,4787.5,1.3526]
[1756069112771,2.1291,4788.0,4787.5,1.3526]
[1756069112965,2.1291,4788.0,4787.0,3.2078]
[1756069112966,2.3761,4787.8,4787.0,1.3526]
[1756069113165,1.1301,4787.6,4787.0,1.3526]
[1756069113362,0.999,4787.5,4787.0,1.3526]
[1756069113566,3.5062,4787.3,4787.1,1.3526]
[1756069113768,2.5072,4787.2,4787.1,1.3526]
[1756069113972,3.5062,4787.2,4787.1,1.3526]
[1756069114169,2.1291,4787.2,4787.1,1.3552]
[1756069114373,3.5062,4787.7,4787.1,2.4461]
[1756069114773,1.1301,4787.6,4787.1,1.3552]
[1756069114971,3.5062,4787.4,4787.2,1.3526]
[1756069115171,3.5062,4787.3,4787.2,1.3526]
[1756069115466,3.5062,4787.3,4787.2,1.3552]
[1756069115670,3.5062,4787.3,4787.2,1.3526]
[1756069116465,3.5062,4787.2,4786.6,20.02]
[1756069116773,3.5062,4787.0,4786.6,21.3726]
[1756069116973,3.2078,4787.5,4786.6,1.3526]
[1756069117171,3.5062,4787.4,4786.6,1.3526]
[1756069117473,3.2078,4787.5,4786.4,0.0026]
[1756069117771,30.078,4789.1,4784.3,1.04516]
[1756069117772,3.5062,4786.4,4785.7,1.3526]
[1756069117975,3.2078,4785.9,4785.7,1.3526]
[1756069118173,3.5062,4785.8,4785.7,1.3526]
[1756069118972,3.5062,4785.8,4785.7,1.3552]
[1756069119272,1.1301,4785.6,4785.3,1.0909]
[1756069119478,3.2078,4785.9,4785.8,1.0909]
[1756069119673,3.2078,4785.9,4785.8,2.4461]
[1756069119870,1.1301,4787.2,4786.4,0.41788]
[1756069120072,2.3761,4787.1,4786.5,1.3526]
[1756069120277,1.1301,4787.2,4786.5,1.3526]
[1756069120473,3.2078,4787.3,4786.5,1.3526]
[1756069120774,1.1301,4786.9,4785.9,1.3526]
[1756069120968,3.2078,4787.3,4785.9,1.3526]
[1756069120969,2.1291,4786.7,4785.9,1.3526]
[1756069121275,3.2078,4787.3,4785.8,3.2078]
[1756069121471,3.2078,4786.8,4785.8,3.2078]
[1756069121772,3.5062,4786.7,4785.8,3.2078]
[1756069122075,3.5062,4786.5,4785.8,3.2078]
[1756069122375,3.2078,4786.8,4785.8,3.2078]
[1756069122570,3.5062,4786.6,4785.8,3.2078]
[1756069122776,3.2078,4786.8,4785.8,3.2078]
[1756069122976,3.5062,4786.1,4785.9,1.3526]
[1756069123176,1.1301,4786.0,4785.9,1.3526]
[1756069123368,3.5062,4786.0,4785.9,1.3526]
[1756069123776,1.1301,4786.0,4785.9,1.3526]
[1756069124274,2.3761,4786.5,4785.9,1.3526]
[1756069124478,1.1301,4786.6,4786.0,0.3361]
[1756069124775,1.1301,4786.6,4786.2,0.754]
[1756069125076,2.3761,4787.0,4786.3,0.41789]
[1756069125274,3.2078,4787.8,4786.4,0.41788]
[1756069125482,1.1301,4787.5,4786.6,1.77046]
[1756069125672,1.1301,4787.3,4786.7,1.3526]
[1756069127274,2.1291,4787.3,4786.7,1.3526]
[1756069127478,0.999,4787.1,4786.5,3.2078]
[1756069127783,1.1301,4787.0,4786.9,1.3526]
[1756069127973,1.1301,4787.6,4787.1,1.77042]
[1756069128173,4.2068,4787.8,4787.1,1.77042]
[1756069128174,3.2078,4787.8,4787.1,3.2078]
[1756069128478,4.2068,4788.3,4787.5,0.41778]
[1756069128786,1.1301,4787.9,4787.8,4.5604]
[1756069129277,1.1301,4788.2,4787.8,3.2078]
[1756069129479,0.999,4788.3,4787.8,3.2078]
[1756069129680,2.3761,4788.3,4787.8,3.2078]
[1756069129878,1.3771,4788.1,4787.8,3.2078]
[1756069130079,3.5062,4787.9,4787.8,3.2078]
[1756069130280,3.5062,4787.9,4787.8,4.5604]
[1756069130472,1.1301,4787.9,4787.8,4.5604]
[1756069130676,2.3761,4788.4,4787.8,4.5604]
[1756069130970,2.3761,4788.4,4787.8,3.2078]
[1756069131275,1.1301,4788.4,4788.3,4.5604]
[1756069131476,1.1301,4789.0,4788.4,1.3526]
[1756069131679,1.1301,4789.0,4788.3,3.2078]
[1756069131680,0.56860213,4788.9,4788.3,3.2078]
[1756069131877,2.1291,4788.6,4788.5,1.3526]
[1756069132076,3.5062,4788.6,4788.5,1.3526]
[1756069132482,2.1291,4788.6,4788.5,1.3526]
[1756069132876,3.5062,4788.6,4788.5,1.3526]
[1756069134476,3.2078,4789.5,4788.6,0.41769]
[1756069134477,2.3761,4789.1,4788.6,0.41769]
[1756069134682,1.1301,4789.0,4788.8,0.41767]
[1756069134976,1.1301,4789.0,4788.9,4.5604]
[1756069135374,1.1301,4789.5,4789.4,1.77022]
[1756069135577,1.3771,4790.0,4789.4,4.97802]
[1756069135879,1.1301,4790.0,4789.6,0.4176]
[1756069136077,1.1301,4790.0,4789.8,1.3526]
[1756069136276,1.1301,4790.0,4789.4,3.2078]
[1756069136277,4.5849,4790.5,4789.4,3.62542]
[1756069136478,4.5849,4790.5,4789.5,0.41761]
[1756069136677,1.1301,4789.7,4789.6,1.3526]
[1756069137182,2.1291,4789.7,4789.6,1.3526]
[1756069137381,1.1301,4789.7,4789.6,1.3526]
[1756069137679,1.1301,4789.7,4789.6,1.7702]
[1756069137882,0.999,4790.2,4789.6,1.7702]
[1756069138081,1.0631,4790.1,4789.9,1.88617]
[1756069138380,1.0631,4790.4,4790.3,1.4686]
[1756069138588,1.0631,4790.4,4790.3,4.6764]
[1756069139483,3.5078,4790.4,4790.3,4.6764]
[1756069139678,2.4606,4790.4,4790.3,4.6764]
[1756069139984,1.0631,4790.4,4790.3,4.6764]
[1756069140486,1.0631,4790.8,4790.6,1.8035]
[1756069140687,1.0631,4791.7,4791.5,1.4686]
[1756069140884,1.0472,4792.5,4791.7,1.4686]
[1756069141186,2.4447,4792.5,4792.3,1.4686]
[1756069141485,2.4447,4793.0,4792.3,1.4686]
[1756069142885,2.4606,4792.8,4792.3,1.4686]
[1756069143185,3.5078,4792.5,4792.3,1.4686]
[1756069143392,2.4447,4792.5,4792.3,1.4686]
[1756069143587,1.0631,4792.3,4792.2,3.2078]
[1756069144183,1.0631,4792.3,4792.2,4.6764]
[1756069144584,2.4606,4792.3,4792.2,4.6764]
[1756069144784,3.5078,4792.3,4792.2,3.2078]
[1756069146388,1.0631,4792.3,4792.2,4.6764]
[1756069146584,1.0472,4792.8,4792.2,3.6395]
[1756069146785,1.0631,4792.5,4792.4,1.4686]
[1756069147081,2.4606,4792.5,4792.4,1.4686]
[1756069147289,1.0631,4792.5,4792.4,1.4686]
[1756069147687,2.1103,4792.5,4792.4,1.4686]
[1756069147888,3.5078,4792.5,4792.4,1.4686]
[1756069148184,3.2078,4793.3,4792.2,3.2078]
[1756069148388,3.465,4792.4,4790.3,3.2078]
[1756069148592,3.5078,4790.2,4788.0,0.18544637]
[1756069148781,2.4606,4789.0,4787.7,0.18418166]
[1756069148980,3.2078,4788.6,4787.6,0.959]
[1756069149180,2.4606,4788.5,4787.6,0.959]
[1756069149383,2.4606,4787.8,4787.6,0.959]
[1756069149590,2.1103,4787.7,4787.6,0.959]
[1756069149789,1.0631,4787.7,4787.6,0.959]
[1756069149984,3.92557,4787.7,4787.6,0.959]
[1756069150380,3.2078,4788.0,4787.7,1.4686]
[1756069150680,1.48082,4788.4,4787.7,0.6368]
[1756069150882,1.0631,4788.4,4788.3,2.4276]
[1756069151088,1.0631,4788.9,4788.3,3.0644]
[1756069151284,1.0631,4788.9,4788.3,0.6368]
[1756069151582,1.0631,4788.8,4788.5,2.4276]
[1756069151787,0.41767,4788.8,4788.5,0.959]
[1756069151985,1.0631,4788.6,4788.5,0.959]
[1756069152386,2.1103,4788.6,4787.8,4.8036]
[1756069152687,3.5078,4788.6,4787.9,1.4686]
[1756069153489,0.4177,4788.5,4787.9,1.4686]
[1756069154088,3.5078,4788.6,4787.9,1.4686]
[1756069154288,3.5078,4788.6,4788.0,0.959]
[1756069154689,3.5078,4788.6,4787.9,1.88635]
[1756069154690,1.0631,4788.5,4788.2,2.4276]
[1756069154890,1.0631,4788.4,4788.3,2.4276]
[1756069156193,2.4606,4789.1,4788.6,0.959]
[1756069156392,2.4606,4789.1,4788.3,3.8446]
[1756069156393,1.0472,4789.0,4788.3,4.26231]
[1756069156588,1.0631,4788.9,4788.8,2.4276]
[1756069156789,1.0631,4789.4,4788.8,3.2078]
[1756069156989,4.255,4790.0,4789.1,0.6368]
[1756069157295,1.0631,4789.3,4789.2,2.4276]
[1756069157489,1.0631,4789.9,4789.3,2.4276]
[1756069157883,1.3975,4789.8,4789.3,2.4276]
[1756069158088,1.0631,4789.9,4789.3,2.4276]
[1756069158089,2.4447,4789.9,4789.3,2.4276]
[1756069158293,3.2078,4790.0,4788.9,0.41766]
[1756069158488,2.4447,4789.7,4788.9,0.41766]
[1756069158694,2.1103,4789.6,4789.5,2.4276]
[1756069159588,3.5078,4789.6,4789.5,2.4276]
[1756069160293,3.5078,4789.6,4789.5,1.4686]
[1756069161392,3.5078,4789.6,4789.5,2.4276]
[1756069163492,1.0631,4789.5,4788.9,2.4276]
[1756069163694,3.5078,4789.4,4788.5,0.4177]
[1756069163896,1.0631,4789.2,4788.6,1.4686]
[1756069164093,1.0631,4789.2,4788.6,2.4276]
[1756069164597,1.0631,4789.1,4789.0,2.4276]
[1756069164796,4.2709,4789.5,4789.0,0.6368]
[1756069164997,3.2078,4789.5,4788.8,3.2078]
[1756069165198,3.2078,4789.5,4789.0,0.41765]
[1756069165398,3.5078,4789.4,4789.1,2.4276]
[1756069165594,3.5078,4789.3,4789.2,1.4686]